fUSD/lending_fUSD_20260506
["ID","MTS","AMOUNT","RATE_DAILY","PERIOD"]
[421695042,1778044262000,-819.72,0.00042465,120]
[421695044,1778044262000,-819.72,0.00042465,120]
[421695046,1778044262000,-819.72,0.00042465,120]
[421695052,1778044262000,-819.72,0.00042465,120]
[421695056,1778044262000,-819.72,0.00042465,120]
[421695050,1778044262000,-819.72,0.00042465,120]
[421695053,1778044262000,-819.72,0.00042465,120]
[421695057,1778044262000,-819.72,0.00042465,120]
[421695058,1778044262000,-819.72,0.00042465,120]
[421695055,1778044262000,-819.72,0.00042465,120]
[421695059,1778044262000,-819.72,0.00042465,120]
[421695051,1778044262000,-819.72,0.00042465,120]
[421695060,1778044262000,-819.72,0.00042465,120]
[421695014,1778044262000,-334.40142733,0.00042465,120]
[421695040,1778044262000,-819.72,0.00042465,120]
[421695048,1778044262000,-819.72,0.00042465,120]
[421695054,1778044262000,-819.72,0.00042465,120]
[421695032,1778044262000,-819.72,0.00042465,120]
[421695038,1778044262000,-819.72,0.00042465,120]
[421695016,1778044262000,-1000.0,0.00042465,7]
[421695020,1778044262000,-188.41895608,0.00042465,120]
[421695023,1778044262000,-500.0,0.00042465,120]
[421695022,1778044262000,-500.0,0.00042465,120]
[421695021,1778044262000,-500.0,0.00042465,120]
[421695017,1778044262000,-926.44879864,0.00042465,7]
[421695019,1778044262000,-153.22058536,0.00042465,120]
[421695024,1778044262000,-500.0,0.00042465,120]
[421695018,1778044262000,-329.21097845,0.00042465,120]
[421695013,1778044262000,-500.0,0.00042465,120]
[421695035,1778044262000,-500.0,0.00042465,120]
[421695036,1778044262000,-819.72,0.00042465,120]
[421695025,1778044262000,-500.0,0.00042465,120]
[421695028,1778044262000,-500.0,0.00042465,120]
[421695027,1778044262000,-500.0,0.00042465,120]
[421695033,1778044262000,-500.0,0.00042465,120]
[421695029,1778044262000,-551.98618996,0.00042465,120]
[421695030,1778044262000,-212.91860264,0.00042465,120]
[421695031,1778044262000,-500.0,0.00042465,120]
[421695034,1778044262000,-819.72,0.00042465,120]
[421695026,1778044262000,-500.0,0.00042465,120]
[421695108,1778044263000,-500.0,0.00042487,120]
[421695095,1778044263000,-300.0,0.00042466,2]
[421695109,1778044263000,-500.0,0.00042487,120]
[421695100,1778044263000,-1560.0,0.00042466,120]
[421695099,1778044263000,-279.0,0.00042466,2]
[421695098,1778044263000,-350.0,0.00042466,2]
[421695094,1778044263000,-300.0,0.00042466,2]
[421695091,1778044263000,-293.0,0.00042466,120]
[421695092,1778044263000,-278.0,0.00042466,2]
[421695090,1778044263000,-241.0,0.00042466,2]
[421695106,1778044263000,-500.0,0.00042487,120]
[421695093,1778044263000,-209.0,0.00042466,120]
[421695101,1778044263000,-300.0,0.0004247,3]
[421695111,1778044263000,-500.0,0.00042497,55]
[421695105,1778044263000,-500.0,0.00042487,120]
[421695102,1778044263000,-500.0,0.00042487,120]
[421695103,1778044263000,-500.0,0.00042487,120]
[421695104,1778044263000,-500.0,0.00042487,120]
[421695110,1778044263000,-372.43341132,0.00042487,120]
[421695112,1778044263000,-500.0,0.00042497,73]
[421695113,1778044263000,-500.0,0.00042499,15]
[421695121,1778044263000,-160.0,0.000425,81]
[421695115,1778044263000,-500.0,0.00042499,10]
[421695118,1778044263000,-500.0,0.00042499,81]
[421695120,1778044263000,-160.0,0.000425,81]
[421695089,1778044263000,-150.0,0.00042466,2]
[421695107,1778044263000,-500.0,0.00042487,120]
[421695088,1778044263000,-524.29399432,0.00042465,120]
[421695070,1778044263000,-500.0,0.00042465,2]
[421695085,1778044263000,-281.14470394,0.00042465,120]
[421695061,1778044263000,-819.72,0.00042465,120]
[421695062,1778044263000,-819.72,0.00042465,120]
[421695066,1778044263000,-500.0,0.00042465,2]
[421695064,1778044263000,-157.87638221,0.00042465,120]
[421695063,1778044263000,-819.86,0.00042465,120]
[421695116,1778044263000,-500.0,0.00042499,45]
[421695068,1778044263000,-249.0386413,0.00042465,2]
[421695067,1778044263000,-500.0,0.00042465,2]
[421695065,1778044263000,-450.27196868,0.00042465,120]
[421695073,1778044263000,-500.0,0.00042465,2]
[421695069,1778044263000,-500.0,0.00042465,2]
[421695072,1778044263000,-500.0,0.00042465,2]
[421695071,1778044263000,-500.0,0.00042465,2]
[421695075,1778044263000,-313.44179778,0.00042465,120]
[421695077,1778044263000,-500.0,0.00042465,2]
[421695074,1778044263000,-500.0,0.00042465,2]
[421695083,1778044263000,-524.22,0.00042465,2]
[421695078,1778044263000,-500.0,0.00042465,2]
[421695076,1778044263000,-500.0,0.00042465,2]
[421695084,1778044263000,-409.41615677,0.00042465,2]
[421695081,1778044263000,-500.0,0.00042465,2]
[421695082,1778044263000,-500.0,0.00042465,2]
[421695080,1778044263000,-500.0,0.00042465,2]
[421695079,1778044263000,-500.0,0.00042465,2]
[421695086,1778044263000,-301.32426208,0.00042465,2]
[421695096,1778044263000,-239.0,0.00042466,2]
[421695097,1778044263000,-350.0,0.00042466,2]
[421695087,1778044263000,-500.0,0.00042465,120]
[421695117,1778044263000,-500.0,0.00042499,23]
[421695119,1778044263000,-30282.88215959,0.000425,120]
[421695123,1778044263000,-500.0,0.000425,45]
[421695154,1778044263000,-500.0,0.00042543,2]
[421695157,1778044263000,-4284.77,0.00042546,120]
[421695151,1778044263000,-500.0,0.00042523,60]
[421695155,1778044263000,-521.35631466,0.00042544,2]
[421695156,1778044263000,-185.97729665,0.00042544,2]
[421695159,1778044263000,-609.36,0.00042546,120]
[421695166,1778044263000,-205.440149,0.00042547,120]
[421695164,1778044263000,-205.440149,0.00042547,120]
[421695165,1778044263000,-205.440149,0.00042547,120]
[421695162,1778044263000,-151.0,0.00042547,120]
[421695168,1778044263000,-168.0,0.0004255,120]
[421695160,1778044263000,-4372.89,0.00042546,120]
[421695163,1778044263000,-159.663309,0.00042547,120]
[421695149,1778044263000,-1514.2706591,0.00042522,2]
[421695170,1778044263000,-337.8794546,0.00042552,2]
[421695169,1778044263000,-500.0,0.00042551,28]
[421695167,1778044263000,-205.440149,0.00042547,120]
[421695172,1778044263000,-500.0,0.00042553,48]
[421695180,1778044263000,-151.0,0.00042562,120]
[421695181,1778044263000,-500.0,0.00042564,7]
[421695176,1778044263000,-500.0,0.00042554,79]
[421695173,1778044263000,-500.0,0.00042553,57]
[421695175,1778044263000,-500.0,0.00042553,59]
[421695178,1778044263000,-14374.9333562,0.00042557,2]
[421695179,1778044263000,-3207.4811819,0.00042559,2]
[421695114,1778044263000,-500.0,0.00042499,25]
[421695174,1778044263000,-500.0,0.00042553,58]
[421695171,1778044263000,-975.8164632,0.00042552,2]
[421695161,1778044263000,-64423.9817096,0.00042547,2]
[421695150,1778044263000,-4373.3059779,0.00042522,2]
[421695177,1778044263000,-500.0,0.00042556,90]
[421695152,1778044263000,-161.0,0.0004253,120]
[421695153,1778044263000,-500.0,0.00042542,9]
[421695133,1778044263000,-200.0,0.000425,23]
[421695134,1778044263000,-217.66576756,0.000425,120]
[421695124,1778044263000,-405.8911,0.000425,120]
[421695130,1778044263000,-500.0,0.000425,45]
[421695131,1778044263000,-500.0,0.000425,45]
[421695125,1778044263000,-500.0,0.000425,45]
[421695128,1778044263000,-200.0,0.000425,2]
[421695129,1778044263000,-300.0,0.000425,10]
[421695127,1778044263000,-500.0,0.000425,45]
[421695126,1778044263000,-500.0,0.000425,45]
[421695132,1778044263000,-500.0,0.000425,45]
[421695135,1778044263000,-3134.0,0.00042502,7]
[421695122,1778044263000,-500.0,0.000425,45]
[421695136,1778044263000,-438.19434818,0.00042504,120]
[421695147,1778044263000,-1148.12,0.00042521,120]
[421695158,1778044263000,-526.13,0.00042546,120]
[421695148,1778044263000,-833.68,0.00042521,120]
[421695142,1778044263000,-152.0,0.00042518,18]
[421695137,1778044263000,-399.75850779,0.00042504,7]
[421695143,1778044263000,-250.0,0.00042521,120]
[421695145,1778044263000,-363.45,0.00042521,120]
[421695140,1778044263000,-285.18294386,0.00042504,8]
[421695138,1778044263000,-2132.37882144,0.00042504,28]
[421695141,1778044263000,-500.0,0.00042512,8]
[421695146,1778044263000,-500.0,0.00042521,2]
[421695139,1778044263000,-5017.07148103,0.00042504,2]
[421695144,1778044263000,-250.0,0.00042521,120]
[421695230,1778044264000,-300.0,0.00042579,30]
[421695219,1778044264000,-833.68,0.00042579,120]
[421695218,1778044264000,-1148.28095629,0.00042579,120]
[421695231,1778044264000,-300.0,0.00042579,30]
[421695215,1778044264000,-1148.12,0.00042579,120]
[421695216,1778044264000,-1148.12,0.00042579,120]
[421695213,1778044264000,-1148.12,0.00042579,120]
[421695214,1778044264000,-1148.12,0.00042579,120]
[421695212,1778044264000,-1148.12,0.00042579,120]
[421695209,1778044264000,-1148.12,0.00042579,120]
[421695210,1778044264000,-1148.12,0.00042579,120]
[421695220,1778044264000,-833.68,0.00042579,120]
[421695224,1778044264000,-833.68,0.00042579,120]
[421695221,1778044264000,-833.68,0.00042579,120]
[421695226,1778044264000,-833.68,0.00042579,120]
[421695228,1778044264000,-833.68,0.00042579,120]
[421695225,1778044264000,-833.68,0.00042579,120]
[421695222,1778044264000,-833.68,0.00042579,120]
[421695223,1778044264000,-833.68,0.00042579,120]
[421695227,1778044264000,-833.68,0.00042579,120]
[421695235,1778044264000,-1872.62650784,0.0004258,30]
[421695233,1778044264000,-1872.62650784,0.0004258,30]
[421695234,1778044264000,-1872.62650784,0.0004258,30]
[421695208,1778044264000,-1148.12,0.00042579,120]
[421695232,1778044264000,-666.0,0.00042579,30]
[421695229,1778044264000,-833.72833417,0.00042579,120]
[421695217,1778044264000,-1148.12,0.00042579,120]
[421695196,1778044264000,-300.0,0.00042579,30]
[421695206,1778044264000,-500.0,0.00042579,2]
[421695238,1778044264000,-151.0,0.0004258,120]
[421695182,1778044264000,-554.35,0.00042564,120]
[421695183,1778044264000,-500.0,0.00042567,120]
[421695184,1778044264000,-500.0,0.00042569,3]
[421695185,1778044264000,-300.0,0.0004257,3]
[421695192,1778044264000,-2000.0,0.00042575,60]
[421695186,1778044264000,-300.0,0.0004257,3]
[421695187,1778044264000,-2042.51,0.00042574,120]
[421695193,1778044264000,-205.48759847,0.00042579,30]
[421695191,1778044264000,-8795.81,0.00042574,120]
[421695188,1778044264000,-261.90593041,0.00042574,120]
[421695190,1778044264000,-346.03763521,0.00042574,120]
[421695189,1778044264000,-500.0,0.00042574,120]
[421695197,1778044264000,-666.0,0.00042579,30]
[421695194,1778044264000,-202.51179196,0.00042579,70]
[421695198,1778044264000,-500.0,0.00042579,2]
[421695195,1778044264000,-300.0,0.00042579,30]
[421695200,1778044264000,-500.0,0.00042579,2]
[421695205,1778044264000,-500.0,0.00042579,2]
[421695202,1778044264000,-500.0,0.00042579,2]
[421695204,1778044264000,-500.0,0.00042579,2]
[421695201,1778044264000,-500.0,0.00042579,2]
[421695199,1778044264000,-500.0,0.00042579,2]
[421695203,1778044264000,-500.0,0.00042579,2]
[421695207,1778044264000,-252.73793154,0.00042579,2]
[421695211,1778044264000,-1148.12,0.00042579,120]
[421695237,1778044264000,-151.0,0.0004258,120]
[421695290,1778044264000,-2042.51,0.00042588,120]
[421695240,1778044264000,-153.6029,0.0004258,120]
[421695267,1778044264000,-165.004399,0.0004258,120]
[421695272,1778044264000,-400.729559,0.0004258,120]
[421695271,1778044264000,-400.729559,0.0004258,120]
[421695282,1778044264000,-300.0,0.00042588,30]
[421695283,1778044264000,-675.23604974,0.00042588,30]
[421695274,1778044264000,-400.729559,0.0004258,120]
[421695279,1778044264000,-300.0,0.00042587,30]
[421695278,1778044264000,-151.0,0.00042586,120]
[421695275,1778044264000,-278.092369,0.0004258,120]
[421695277,1778044264000,-278.092369,0.0004258,120]
[421695273,1778044264000,-278.092369,0.0004258,120]
[421695281,1778044264000,-666.0,0.00042587,30]
[421695284,1778044264000,-2042.51,0.00042588,120]
[421695280,1778044264000,-378.02245382,0.00042587,30]
[421695285,1778044264000,-2042.51,0.00042588,120]
[421695286,1778044264000,-2042.51,0.00042588,120]
[421695288,1778044264000,-2042.51,0.00042588,120]
[421695291,1778044264000,-2042.51,0.00042588,120]
[421695292,1778044264000,-2042.51,0.00042588,120]
[421695295,1778044264000,-2042.51,0.00042588,120]
[421695287,1778044264000,-2042.51,0.00042588,120]
[421695289,1778044264000,-2042.51,0.00042588,120]
[421695294,1778044264000,-2042.51,0.00042588,120]
[421695293,1778044264000,-2042.51,0.00042588,120]
[421695236,1778044264000,-319.0,0.0004258,120]
[421695268,1778044264000,-165.004399,0.0004258,120]
[421695266,1778044264000,-165.004399,0.0004258,120]
[421695276,1778044264000,-278.092369,0.0004258,120]
[421695262,1778044264000,-165.004399,0.0004258,120]
[421695241,1778044264000,-151.0,0.0004258,60]
[421695261,1778044264000,-165.004399,0.0004258,120]
[421695243,1778044264000,-151.0,0.0004258,60]
[421695244,1778044264000,-151.0,0.0004258,60]
[421695239,1778044264000,-151.0,0.0004258,120]
[421695242,1778044264000,-151.0,0.0004258,60]
[421695246,1778044264000,-151.0,0.0004258,60]
[421695257,1778044264000,-165.004399,0.0004258,120]
[421695245,1778044264000,-151.0,0.0004258,60]
[421695251,1778044264000,-165.004399,0.0004258,120]
[421695247,1778044264000,-151.0,0.0004258,60]
[421695248,1778044264000,-151.0,0.0004258,60]
[421695250,1778044264000,-165.004399,0.0004258,120]
[421695256,1778044264000,-165.004399,0.0004258,120]
[421695258,1778044264000,-165.004399,0.0004258,120]
[421695270,1778044264000,-400.729559,0.0004258,120]
[421695249,1778044264000,-153.405141,0.0004258,60]
[421695259,1778044264000,-165.004399,0.0004258,120]
[421695265,1778044264000,-165.004399,0.0004258,120]
[421695264,1778044264000,-165.004399,0.0004258,120]
[421695263,1778044264000,-165.004399,0.0004258,120]
[421695269,1778044264000,-165.004397,0.0004258,120]
[421695254,1778044264000,-165.004399,0.0004258,120]
[421695252,1778044264000,-165.004399,0.0004258,120]
[421695253,1778044264000,-165.004399,0.0004258,120]
[421695255,1778044264000,-165.004399,0.0004258,120]
[421695260,1778044264000,-165.004399,0.0004258,120]
[421695336,1778044265000,-8795.81,0.00042588,120]
[421695332,1778044265000,-8795.81,0.00042588,120]
[421695334,1778044265000,-8795.81,0.00042588,120]
[421695333,1778044265000,-8795.81,0.00042588,120]
[421695335,1778044265000,-8795.81,0.00042588,120]
[421695326,1778044265000,-8795.81,0.00042588,120]
[421695323,1778044265000,-8795.81,0.00042588,120]
[421695328,1778044265000,-8795.81,0.00042588,120]
[421695324,1778044265000,-8795.81,0.00042588,120]
[421695322,1778044265000,-8795.81,0.00042588,120]
[421695339,1778044265000,-8795.81,0.00042588,120]
[421695325,1778044265000,-8795.81,0.00042588,120]
[421695338,1778044265000,-8795.81,0.00042588,120]
[421695349,1778044265000,-1656.06,0.00042589,120]
[421695341,1778044265000,-8796.0313,0.00042588,120]
[421695342,1778044265000,-185.67019026,0.00042588,120]
[421695343,1778044265000,-500.0,0.00042588,30]
[421695345,1778044265000,-482.0,0.00042589,120]
[421695353,1778044265000,-200.0,0.00042589,7]
[421695352,1778044265000,-494.48575912,0.00042589,120]
[421695344,1778044265000,-300.0,0.00042588,30]
[421695355,1778044265000,-1535.0,0.00042589,14]
[421695354,1778044265000,-200.0,0.00042589,7]
[421695347,1778044265000,-169.16180632,0.00042589,120]
[421695346,1778044265000,-3227.18603934,0.00042589,120]
[421695327,1778044265000,-8795.81,0.00042588,120]
[421695337,1778044265000,-8795.81,0.00042588,120]
[421695329,1778044265000,-8795.81,0.00042588,120]
[421695298,1778044265000,-2042.51,0.00042588,120]
[421695330,1778044265000,-8795.81,0.00042588,120]
[421695350,1778044265000,-254.81702264,0.00042589,120]
[421695296,1778044265000,-2042.51,0.00042588,120]
[421695297,1778044265000,-2042.51,0.00042588,120]
[421695299,1778044265000,-2042.51,0.00042588,120]
[421695300,1778044265000,-2042.51,0.00042588,120]
[421695301,1778044265000,-2042.51,0.00042588,120]
[421695302,1778044265000,-2042.51,0.00042588,120]
[421695303,1778044265000,-2042.51,0.00042588,120]
[421695305,1778044265000,-500.0,0.00042588,120]
[421695304,1778044265000,-2042.68030461,0.00042588,120]
[421695306,1778044265000,-500.0,0.00042588,120]
[421695307,1778044265000,-500.0,0.00042588,120]
[421695331,1778044265000,-8795.81,0.00042588,120]
[421695308,1778044265000,-500.0,0.00042588,120]
[421695318,1778044265000,-500.0,0.00042588,120]
[421695311,1778044265000,-500.0,0.00042588,120]
[421695309,1778044265000,-500.0,0.00042588,120]
[421695312,1778044265000,-500.0,0.00042588,120]
[421695316,1778044265000,-500.0,0.00042588,120]
[421695313,1778044265000,-500.0,0.00042588,120]
[421695315,1778044265000,-500.0,0.00042588,120]
[421695314,1778044265000,-500.0,0.00042588,120]
[421695317,1778044265000,-500.0,0.00042588,120]
[421695319,1778044265000,-500.0,0.00042588,120]
[421695321,1778044265000,-8795.81,0.00042588,120]
[421695320,1778044265000,-215.24069481,0.00042588,120]
[421695310,1778044265000,-500.0,0.00042588,120]
[421695348,1778044265000,-175.4583049,0.00042589,120]
[421695340,1778044265000,-8795.81,0.00042588,120]
[421695357,1778044265000,-938.47,0.0004259,30]
[421695386,1778044265000,-321.97141713,0.00042604,2]
[421695387,1778044265000,-339470.24876696,0.00042604,48]
[421695393,1778044265000,-151.0,0.00042604,120]
[421695389,1778044265000,-250.0,0.00042604,120]
[421695391,1778044265000,-984.0,0.00042604,120]
[421695392,1778044265000,-151.0,0.00042604,120]
[421695388,1778044265000,-158.0,0.00042604,120]
[421695390,1778044265000,-318.0,0.00042604,120]
[421695396,1778044265000,-205.440149,0.00042604,120]
[421695395,1778044265000,-151.0,0.00042604,120]
[421695406,1778044265000,-205.440149,0.00042604,120]
[421695405,1778044265000,-205.440149,0.00042604,120]
[421695403,1778044265000,-205.440149,0.00042604,120]
[421695400,1778044265000,-205.440149,0.00042604,120]
[421695397,1778044265000,-205.440149,0.00042604,120]
[421695402,1778044265000,-205.440149,0.00042604,120]
[421695399,1778044265000,-205.440149,0.00042604,120]
[421695398,1778044265000,-205.440149,0.00042604,120]
[421695401,1778044265000,-205.440149,0.00042604,120]
[421695404,1778044265000,-205.440149,0.00042604,120]
[421695408,1778044265000,-205.440149,0.00042604,120]
[421695407,1778044265000,-205.440149,0.00042604,120]
[421695412,1778044265000,-400.729559,0.00042604,120]
[421695413,1778044265000,-400.729559,0.00042604,120]
[421695409,1778044265000,-205.440149,0.00042604,120]
[421695414,1778044265000,-400.729559,0.00042604,120]
[421695410,1778044265000,-205.440149,0.00042604,120]
[421695384,1778044265000,-300.0,0.00042603,30]
[421695385,1778044265000,-104080.34183508,0.00042603,7]
[421695351,1778044265000,-1823.76239579,0.00042589,120]
[421695383,1778044265000,-300.0,0.00042603,30]
[421695367,1778044265000,-882.0,0.000426,30]
[421695358,1778044265000,-150.0,0.000426,18]
[421695369,1778044265000,-300.0,0.00042603,30]
[421695368,1778044265000,-168.75516773,0.00042601,120]
[421695356,1778044265000,-200.0,0.00042589,7]
[421695359,1778044265000,-150.0,0.000426,56]
[421695366,1778044265000,-314.0,0.000426,30]
[421695394,1778044265000,-151.0,0.00042604,120]
[421695362,1778044265000,-307.0,0.000426,30]
[421695364,1778044265000,-1000.0,0.000426,30]
[421695361,1778044265000,-300.0,0.000426,2]
[421695363,1778044265000,-193.155,0.000426,46]
[421695365,1778044265000,-1225.98752658,0.000426,30]
[421695360,1778044265000,-160.0,0.000426,81]
[421695371,1778044265000,-300.0,0.00042603,30]
[421695411,1778044265000,-205.440156,0.00042604,120]
[421695379,1778044265000,-300.0,0.00042603,30]
[421695377,1778044265000,-300.0,0.00042603,30]
[421695375,1778044265000,-300.0,0.00042603,30]
[421695373,1778044265000,-300.0,0.00042603,30]
[421695370,1778044265000,-300.0,0.00042603,30]
[421695380,1778044265000,-300.0,0.00042603,30]
[421695374,1778044265000,-300.0,0.00042603,30]
[421695376,1778044265000,-300.0,0.00042603,30]
[421695378,1778044265000,-300.0,0.00042603,30]
[421695372,1778044265000,-300.0,0.00042603,30]
[421695381,1778044265000,-300.0,0.00042603,30]
[421695382,1778044265000,-262.4241086,0.00042603,30]
[421695460,1778044266000,-269.120346,0.00042604,120]
[421695462,1778044266000,-649.209857,0.00042604,120]
[421695457,1778044266000,-649.209857,0.00042604,120]
[421695455,1778044266000,-269.120346,0.00042604,120]
[421695453,1778044266000,-649.209857,0.00042604,120]
[421695449,1778044266000,-649.209857,0.00042604,120]
[421695452,1778044266000,-269.120346,0.00042604,120]
[421695450,1778044266000,-269.120346,0.00042604,120]
[421695444,1778044266000,-649.209857,0.00042604,120]
[421695446,1778044266000,-649.209857,0.00042604,120]
[421695451,1778044266000,-649.209857,0.00042604,120]
[421695458,1778044266000,-151.0,0.00042604,30]
[421695467,1778044266000,-269.120346,0.00042604,120]
[421695454,1778044266000,-269.120346,0.00042604,120]
[421695463,1778044266000,-269.120346,0.00042604,120]
[421695456,1778044266000,-151.0,0.00042604,30]
[421695459,1778044266000,-649.209857,0.00042604,120]
[421695461,1778044266000,-151.0,0.00042604,30]
[421695469,1778044266000,-649.209857,0.00042604,120]
[421695477,1778044266000,-649.209855,0.00042604,120]
[421695465,1778044266000,-649.209857,0.00042604,120]
[421695466,1778044266000,-269.120346,0.00042604,120]
[421695468,1778044266000,-151.0,0.00042604,30]
[421695476,1778044266000,-269.120346,0.00042604,120]
[421695470,1778044266000,-151.0,0.00042604,30]
[421695447,1778044266000,-649.209857,0.00042604,120]
[421695464,1778044266000,-151.0,0.00042604,30]
[421695445,1778044266000,-649.209857,0.00042604,120]
[421695431,1778044266000,-400.729564,0.00042604,120]
[421695443,1778044266000,-278.092364,0.00042604,120]
[421695471,1778044266000,-649.209857,0.00042604,120]
[421695418,1778044266000,-400.729559,0.00042604,120]
[421695415,1778044266000,-400.729559,0.00042604,120]
[421695417,1778044266000,-400.729559,0.00042604,120]
[421695416,1778044266000,-400.729559,0.00042604,120]
[421695419,1778044266000,-400.729559,0.00042604,120]
[421695421,1778044266000,-400.729559,0.00042604,120]
[421695423,1778044266000,-400.729559,0.00042604,120]
[421695424,1778044266000,-278.092369,0.00042604,120]
[421695426,1778044266000,-400.729559,0.00042604,120]
[421695420,1778044266000,-400.729559,0.00042604,120]
[421695429,1778044266000,-278.092369,0.00042604,120]
[421695428,1778044266000,-400.729559,0.00042604,120]
[421695425,1778044266000,-278.092369,0.00042604,120]
[421695427,1778044266000,-278.092369,0.00042604,120]
[421695430,1778044266000,-400.729559,0.00042604,120]
[421695432,1778044266000,-278.092369,0.00042604,120]
[421695441,1778044266000,-278.092369,0.00042604,120]
[421695442,1778044266000,-278.092369,0.00042604,120]
[421695434,1778044266000,-278.092369,0.00042604,120]
[421695436,1778044266000,-278.092369,0.00042604,120]
[421695433,1778044266000,-278.092369,0.00042604,120]
[421695435,1778044266000,-278.092369,0.00042604,120]
[421695437,1778044266000,-278.092369,0.00042604,120]
[421695439,1778044266000,-278.092369,0.00042604,120]
[421695438,1778044266000,-278.092369,0.00042604,120]
[421695440,1778044266000,-278.092369,0.00042604,120]
[421695448,1778044266000,-649.209857,0.00042604,120]
[421695474,1778044266000,-649.209857,0.00042604,120]
[421695422,1778044266000,-400.729559,0.00042604,120]
[421695473,1778044266000,-269.120346,0.00042604,120]
[421695508,1778044266000,-151.0,0.00042604,120]
[421695509,1778044266000,-151.0,0.00042604,120]
[421695515,1778044266000,-250.0,0.00042604,30]
[421695510,1778044266000,-151.0,0.00042604,120]
[421695513,1778044266000,-221.589595,0.00042604,120]
[421695511,1778044266000,-151.0,0.00042604,120]
[421695514,1778044266000,-250.0,0.00042604,30]
[421695512,1778044266000,-151.0,0.00042604,120]
[421695527,1778044266000,-878.136391,0.00042604,60]
[421695517,1778044266000,-878.136391,0.00042604,60]
[421695528,1778044266000,-878.136391,0.00042604,60]
[421695518,1778044266000,-878.136391,0.00042604,60]
[421695505,1778044266000,-151.0,0.00042604,120]
[421695524,1778044266000,-878.136391,0.00042604,60]
[421695523,1778044266000,-878.136391,0.00042604,60]
[421695516,1778044266000,-878.136391,0.00042604,60]
[421695521,1778044266000,-878.136391,0.00042604,60]
[421695525,1778044266000,-878.136391,0.00042604,60]
[421695520,1778044266000,-878.136391,0.00042604,60]
[421695519,1778044266000,-878.136391,0.00042604,60]
[421695522,1778044266000,-878.136391,0.00042604,60]
[421695530,1778044266000,-878.136391,0.00042604,60]
[421695529,1778044266000,-878.136391,0.00042604,60]
[421695533,1778044266000,-151.0,0.00042604,120]
[421695532,1778044266000,-151.0,0.00042604,120]
[421695534,1778044266000,-151.0,0.00042604,120]
[421695526,1778044266000,-878.136391,0.00042604,60]
[421695506,1778044266000,-151.0,0.00042604,120]
[421695531,1778044266000,-878.136388,0.00042604,60]
[421695504,1778044266000,-274.197896,0.00042604,120]
[421695507,1778044266000,-151.0,0.00042604,120]
[421695472,1778044266000,-151.0,0.00042604,30]
[421695484,1778044266000,-220.59085,0.00042604,30]
[421695478,1778044266000,-269.120346,0.00042604,120]
[421695485,1778044266000,-269.120346,0.00042604,120]
[421695489,1778044266000,-151.0,0.00042604,120]
[421695481,1778044266000,-151.0,0.00042604,30]
[421695488,1778044266000,-151.0,0.00042604,120]
[421695490,1778044266000,-151.0,0.00042604,120]
[421695483,1778044266000,-269.120346,0.00042604,120]
[421695479,1778044266000,-151.0,0.00042604,30]
[421695480,1778044266000,-269.120346,0.00042604,120]
[421695486,1778044266000,-269.120346,0.00042604,120]
[421695487,1778044266000,-269.120343,0.00042604,120]
[421695475,1778044266000,-151.0,0.00042604,30]